Workbook

Sheet README
A1: README
A3: This Excel file illustrates the use of the CCmath Erlang module
A4: It shows how the most commonly used functions are used
A5: For a complete overview, please see the manual
A6: http://software.ccmath.com/erlang/manual/
A7: The latest version of this file can be obtained here
A8: http://software.ccmath.com/erlang/ErlangDemo.xlsm
A9: The corresponding add-in can be obtained here
A10: http://software.ccmath.com/erlang/Erlang.xla
A12: This workbook requires macros to be enabled
A13: Registration is needed to use the functions, see the Registration tab
A14: The module will be fully functional for 1 week after registration
A16: For pricing information of a license: contact CCmath at info@ccmath.com
A18: A short description of what can be found in the different tabs is as follows:
B19: Erlang C: the use of the different functions that are related to the Erlang C method
B20: Erlang X: the use of the different functions that are related to the Erlang X method, which includes abandonments
B21: Daily staffing: shows in a single sheet how to use daily profiles and a forecast to calculate staffing levels for a whole day
B22: Including shifts: extends the previous sheet to the use of agent shifts
A24: Color coding
B25: Input
B26: Output
A28: Version 1.12, February 20, 2015, © CCmath

Sheet Registration
A1: Registration
A3: Please click the button below to register
A8: Registration is required only once
A9: If the message reads "Registration successful!" or "Product is already registered!" then the functions can be used
A10: Please contact CCmath if you get a different message

Sheet Erlang C
A1: Erlang C
A3: FC = forecast | B3: 4 | C3: per minute | D3: 4 | E3: 4
A4: AHT = average handling time | B4: 3 | C4: minutes | D4: 3 | E4: 3
A5: AWT = acceptable waiting time | B5: =20/60 -> 0.3333333333 | C5: minutes | D5: =20/60 -> 0.3333333333 | E5: =20/60 -> 0.3333333333
A6: Number of agents | B6: 14 | D6: =agentsServiceLevelErlangC(D10,D3,D4,D5) -> 15.2943 | E6: =agentsWaitingTimeErlangC(E9,E3,E4) -> 14.9649 | F6: (before rounding)
D7: =ROUNDUP(D6,0) -> 16 | E7: =ROUNDUP(E6,0) -> 15 | F7: (rounded)
A9: ASA = average speed of answer | B9: =waitingtimeErlangC(B3,B4,B6) -> 0.722558 | C9: minutes | D9: =waitingtimeErlangC(D3,D4,D7) -> 0.15343 | E9: =20/60 -> 0.3333333333
A10: SL = service level = % answered within AWT | B10: =serviceLevelErlangC(B3,B4,B6,B5) -> 0.61428 | D10: 0.8 | E10: =serviceLevelErlangC(E3,E4,E7,E5) -> 0.77129
A11: Productivity | B11: =B3*B4/B6 -> 0.8571428571 | D11: =D3*D4/D7 -> 0.75 | E11: =E3*E4/E7 -> 0.8
A13: All durations have to be in the same unit (e.g., minutes), thus forecasts for 15 or 30-minute intervals have to be divided by 15 or 30
A14: Column B: calculation of ASA and SL
A15: Column D: calculation of number of agents on basis of SL
A16: Column E: calculation of number of agents on basis of ASA
A17: When calculating the number of agents the resulting number is not rounded to the next highest integer, because sometimes shrinkage has to be added before rounding
A18: Rounding is done in row 7
A19: The results in row 9-11 are based on the rounded number

Sheet Erlang X
A1: Erlang X
A3: FC | B3: 4 | C3: per minute | D3: 4 | E3: 4
A4: AHT | B4: 3 | C4: minutes | D4: 3 | E4: 3
A5: Average patience of callers | B5: 1 | C5: minute | D5: 1 | E5: 1
A6: AWT | B6: =20/60 -> 0.3333333333 | C6: minutes | D6: =20/60 -> 0.3333333333 | E6: =20/60 -> 0.3333333333
A7: Number of lines | B7: 100 | D7: 100 | E7: 100
A8: Number of agents | B8: 14 | D8: =ROUNDUP(agentsServiceLevelErlangX(D11,D3,D4,D6,D7,D5,0), 0) -> 13 | E8: =ROUNDUP(agentsAbandonmentErlangX(E12,E3,E4,E7,E5,0), 0) -> 16
A10: ASA | B10: =waitingtimeErlangX(B3,B4,B8,B7,B5,0) -> 0.100441 | C10: minutes | D10: =waitingtimeErlangX(D3,D4,D8,D7,D5,0) -> 0.145871 | E10: =waitingtimeErlangX(E3,E4,E8,E7,E5,0) -> 0.0424876
A11: SL | B11: =serviceLevelErlangX(B3,B4,B8,B6,B7,B5,0) -> 0.879763 | D11: 0.8 | E11: =serviceLevelErlangX(E3,E4,E8,E6,E7,E5,0) -> 0.949389
A12: Abandonments (patience is over) | B12: =abandonmentsErlangX(B3,B4,B8,B7,B5,0) -> 0.0743252 | D12: =abandonmentsErlangX(D3,D4,D8,D7,D5,0) -> 0.105465 | E12: 0.05
A13: Blocked calls (all lines occupied) | B13: =blockingprobErlangX(B3,B4,B8,B7,B5,0) -> 1.36215e-87 | D13: =blockingprobErlangX(D3,D4,D8,D7,D5,0) -> 1.93498e-88 | E13: =blockingprobErlangX(E3,E4,E8,E7,E5,0) -> 6.08614e-86
A14: Productivity | B14: =occupancyErlangX(B3,B4,B8,B7,B5,0) -> 0.793436 | D14: =occupancyErlangX(D3,D4,D8,D7,D5,0) -> 0.825724 | E14: =occupancyErlangX(E3,E4,E8,E7,E5,0) -> 0.725485
A16: Column B: calculation of ASA and SL
A17: Column D: calculation of number of agents on basis of SL
A18: Column E: calculation of number of agents on basis of abandonment percentage

Sheet Daily staffing
A1: Daily staffing
A2: Example of staffing calculations for a 12-hour period using Erlang X with SL restriction
A4: Forecast of total daily call volume | B4: 600
A5: AHT | B5: 4
A6: Patience | B6: 2
A7: AWT | B7: =20/60 -> 0.3333333333
A8: Lines | B8: 100
A9: Shrinkage | B9: 0.2
A10: SL | B10: 0.8
A12: Time Interval | B12: Forecast | C12: Staffing
A13: 09:00 - 09:30 | B13: =$B$4 * T41 / 30 -> 0.7850378071 | C13: =ROUNDUP(agentsServiceLevelErlangX($B$10,B13,$B$5,$B$7,$B$8,$B$6,0)/(1-$B$9),0) -> 6
A14: 09:30 - 10:00 | B14: =$B$4 * T42 / 30 -> 0.9022388982 | C14: =ROUNDUP(agentsServiceLevelErlangX($B$10,B14,$B$5,$B$7,$B$8,$B$6,0)/(1-$B$9),0) -> 7
A15: 10:00 - 10:30 | B15: 0.9514971119 | C15: 7
A16: 10:30 - 11:00 | B16: 0.9353892698 | C16: 7
A17: 11:00 - 11:30 | B17: 1.045202394 | C17: 8
A18: 11:30 - 12:00 | B18: 1.035068843 | C18: 8
A19: 12:00 - 12:30 | B19: 0.8231369948 | C19: 6
A20: 12:30 - 13:00 | B20: 0.7999342534 | C20: 6
A21: 13:00 - 13:30 | B21: 0.9268349295 | C21: 7
A22: 13:30 - 14:00 | B22: 1.042443151 | C22: 8
A23: 14:00 - 14:30 | B23: 1.153953163 | C23: 8
A24: 14:30 - 15:00 | B24: 0.981533734 | C24: 7
A25: 15:00 - 15:30 | B25: 1.054954457 | C25: 8
A26: 15:30 - 16:00 | B26: 0.9895191979 | C26: 7
A27: 16:00 - 16:30 | B27: 1.266299308 | C27: 9
A28: 16:30 - 17:00 | B28: 1.07824763 | C28: 8
A29: 17:00 - 17:30 | B29: 0.7871984781 | C29: 6
A30: 17:30 - 18:00 | B30: 0.6788807158 | C30: 6
A31: 18:00 - 18:30 | B31: 0.4867352187 | C31: 5
A32: 18:30 - 19:00 | B32: 0.5244956894 | C32: 5
A33: 19:00 - 19:30 | B33: 0.5171662774 | C33: 5
A34: 19:30 - 20:00 | B34: 0.5352474976 | C34: 5
A35: 20:00 - 20:30 | B35: 0.4122849336 | C35: 4
A36: 20:30 - 21:00 | B36: 0.286700046 | C36: 3
A38: Profile calculation on the basis of historic call volume
B40: Call volumes of eight weeks (same day) | K40: Fractions for each day | T40: Profile
A41: 09:00 - 09:30 | B41: 25 | C41: 18 | D41: 23 | E41: 21 | F41: 23 | G41: 26 | H41: 32 | I41: 18 | K41: =B41/B$66 -> 0.05030181087 | L41: =C41/C$66 -> 0.03578528827 | M41: =D41/D$66 -> 0.03582554517 | N41: 0.0371024735 | O41: 0.03463855422 | P41: 0.04498269896 | Q41: 0.05095541401 | R41: 0.02442333786 | T41: =AVERAGE(K41:R41) -> 0.03925189036
A42: 09:30 - 10:00 | B42: 25 | C42: 18 | D42: 26 | E42: 34 | F42: 32 | G42: 33 | H42: 22 | I42: 25 | K42: =B42/B$66 -> 0.05030181087 | L42: =C42/C$66 -> 0.03578528827 | M42: 0.04049844237 | N42: 0.06007067138 | O42: 0.04819277108 | P42: 0.05709342561 | Q42: 0.03503184713 | R42: 0.03392130258 | T42: =AVERAGE(K42:R42) -> 0.04511194491
A43: 10:00 - 10:30 | B43: 27 | C43: 16 | D43: 21 | E43: 24 | F43: 23 | G43: 35 | H43: 49 | I43: 34 | K43: 0.05432595573 | L43: 0.03180914513 | M43: 0.03271028037 | N43: 0.04240282686 | O43: 0.03463855422 | P43: 0.06055363322 | Q43: 0.07802547771 | R43: 0.04613297151 | T43: 0.04757485559
A44: 10:30 - 11:00 | B44: 30 | C44: 29 | D44: 32 | E44: 17 | F44: 25 | G44: 27 | H44: 33 | I44: 29 | K44: 0.06036217304 | L44: 0.05765407555 | M44: 0.04984423676 | N44: 0.03003533569 | O44: 0.03765060241 | P44: 0.04671280277 | Q44: 0.0525477707 | R44: 0.03934871099 | T44: 0.04676946349
A45: 11:00 - 11:30 | B45: 40 | C45: 33 | D45: 25 | E45: 32 | F45: 38 | G45: 19 | H45: 27 | I45: 32 | K45: 0.08048289738 | L45: 0.06560636183 | M45: 0.03894080997 | N45: 0.05653710247 | O45: 0.05722891566 | P45: 0.03287197232 | Q45: 0.04299363057 | R45: 0.0434192673 | T45: 0.05226011969
A46: 11:30 - 12:00 | B46: 20 | C46: 34 | D46: 43 | E46: 22 | F46: 45 | G46: 26 | H46: 32 | I46: 27 | K46: 0.04024144869 | L46: 0.0675944334 | M46: 0.06697819315 | N46: 0.03886925795 | O46: 0.06777108434 | P46: 0.04498269896 | Q46: 0.05095541401 | R46: 0.03663500678 | T46: 0.05175344216
A47: 12:00 - 12:30 | B47: 18 | C47: 27 | D47: 25 | E47: 19 | F47: 24 | G47: 24 | H47: 33 | I47: 27 | K47: 0.03621730382 | L47: 0.05367793241 | M47: 0.03894080997 | N47: 0.03356890459 | O47: 0.03614457831 | P47: 0.04152249135 | Q47: 0.0525477707 | R47: 0.03663500678 | T47: 0.04115684974
A48: 12:30 - 13:00 | B48: 19 | C48: 14 | D48: 28 | E48: 21 | F48: 25 | G48: 33 | H48: 22 | I48: 32 | K48: 0.03822937626 | L48: 0.02783300199 | M48: 0.04361370717 | N48: 0.0371024735 | O48: 0.03765060241 | P48: 0.05709342561 | Q48: 0.03503184713 | R48: 0.0434192673 | T48: 0.03999671267
A49: 13:00 - 13:30 | B49: 15 | C49: 28 | D49: 35 | E49: 33 | F49: 34 | G49: 21 | H49: 19 | I49: 40 | K49: 0.03018108652 | L49: 0.05566600398 | M49: 0.05451713396 | N49: 0.05830388693 | O49: 0.05120481928 | P49: 0.03633217993 | Q49: 0.03025477707 | R49: 0.05427408412 | T49: 0.04634174647
A50: 13:30 - 14:00 | B50: 37 | C50: 27 | D50: 21 | E50: 28 | F50: 31 | G50: 28 | H50: 30 | I50: 47 | K50: 0.07444668008 | L50: 0.05367793241 | M50: 0.03271028037 | N50: 0.04946996466 | O50: 0.04668674699 | P50: 0.04844290657 | Q50: 0.04777070064 | R50: 0.06377204885 | T50: 0.05212215757
A51: 14:00 - 14:30 | B51: 22 | C51: 32 | D51: 33 | E51: 38 | F51: 44 | G51: 22 | H51: 37 | I51: 53 | K51: 0.04426559356 | L51: 0.06361829026 | M51: 0.05140186916 | N51: 0.06713780919 | O51: 0.06626506024 | P51: 0.03806228374 | Q51: 0.05891719745 | R51: 0.07191316147 | T51: 0.05769765813
A52: 14:30 - 15:00 | B52: 23 | C52: 21 | D52: 34 | E52: 35 | F52: 30 | G52: 20 | H52: 35 | I52: 40 | K52: 0.046277666 | L52: 0.04174950298 | M52: 0.05295950156 | N52: 0.06183745583 | O52: 0.04518072289 | P52: 0.03460207612 | Q52: 0.05573248408 | R52: 0.05427408412 | T52: 0.0490766867
A53: 15:00 - 15:30 | B53: 22 | C53: 28 | D53: 30 | E53: 41 | F53: 35 | G53: 24 | H53: 35 | I53: 39 | K53: 0.04426559356 | L53: 0.05566600398 | M53: 0.04672897196 | N53: 0.07243816254 | O53: 0.05271084337 | P53: 0.04152249135 | Q53: 0.05573248408 | R53: 0.05291723202 | T53: 0.05274772286
A54: 15:30 - 16:00 | B54: 21 | C54: 26 | D54: 36 | E54: 29 | F54: 27 | G54: 33 | H54: 25 | I54: 42 | K54: 0.04225352113 | L54: 0.05168986083 | M54: 0.05607476636 | N54: 0.05123674912 | O54: 0.0406626506 | P54: 0.05709342561 | Q54: 0.0398089172 | R54: 0.05698778833 | T54: 0.0494759599
A55: 16:00 - 16:30 | B55: 36 | C55: 24 | D55: 41 | E55: 39 | F55: 43 | G55: 44 | H55: 35 | I55: 42 | K55: 0.07243460765 | L55: 0.04771371769 | M55: 0.06386292835 | N55: 0.06890459364 | O55: 0.06475903614 | P55: 0.07612456747 | Q55: 0.05573248408 | R55: 0.05698778833 | T55: 0.06331496542
A56: 16:30 - 17:00 | B56: 29 | C56: 22 | D56: 42 | E56: 33 | F56: 39 | G56: 24 | H56: 32 | I56: 40 | K56: 0.0583501006 | L56: 0.04373757455 | M56: 0.06542056075 | N56: 0.05830388693 | O56: 0.05873493976 | P56: 0.04152249135 | Q56: 0.05095541401 | R56: 0.05427408412 | T56: 0.05391238151
A57: 17:00 - 17:30 | B57: 19 | C57: 21 | D57: 27 | E57: 24 | F57: 28 | G57: 26 | H57: 21 | I57: 22 | K57: 0.03822937626 | L57: 0.04174950298 | M57: =D57/D$66 -> 0.04205607477 | N57: =E57/E$66 -> 0.04240282686 | O57: =F57/F$66 -> 0.0421686747 | P57: =G57/G$66 -> 0.04498269896 | Q57: =H57/H$66 -> 0.03343949045 | R57: =I57/I$66 -> 0.02985074627 | T57: 0.0393599239
A58: 17:30 - 18:00 | B58: 12 | C58: 19 | D58: 24 | E58: 21 | F58: 23 | G58: 18 | H58: 18 | I58: 30 | K58: 0.02414486922 | L58: 0.03777335984 | M58: 0.03738317757 | N58: 0.0371024735 | O58: 0.03463855422 | P58: 0.03114186851 | Q58: 0.02866242038 | R58: 0.04070556309 | T58: 0.03394403579
A59: 18:00 - 18:30 | B59: 8 | C59: 15 | D59: 16 | E59: 7 | F59: 19 | G59: 15 | H59: 17 | I59: 22 | K59: 0.01609657948 | L59: 0.02982107356 | M59: 0.02492211838 | N59: 0.01236749117 | O59: 0.02861445783 | P59: 0.02595155709 | Q59: 0.02707006369 | R59: 0.02985074627 | T59: 0.02433676093
A60: 18:30 - 19:00 | B60: 10 | C60: 14 | D60: 21 | E60: 6 | F60: 18 | G60: 21 | H60: 15 | I60: 23 | K60: 0.02012072435 | L60: 0.02783300199 | M60: 0.03271028037 | N60: 0.01060070671 | O60: 0.02710843373 | P60: 0.03633217993 | Q60: 0.02388535032 | R60: 0.03120759837 | T60: 0.02622478447
A61: 19:00 - 19:30 | B61: 13 | C61: 16 | D61: 21 | E61: 10 | F61: 20 | G61: 17 | H61: 10 | I61: 17 | K61: 0.02615694165 | L61: 0.03180914513 | M61: 0.03271028037 | N61: 0.01766784452 | O61: 0.03012048193 | P61: 0.02941176471 | Q61: 0.01592356688 | R61: 0.02306648575 | T61: 0.02585831387
A62: 19:30 - 20:00 | B62: 12 | C62: 10 | D62: 12 | E62: 11 | F62: 20 | G62: 16 | H62: 21 | I62: 30 | K62: 0.02414486922 | L62: 0.01988071571 | M62: 0.01869158879 | N62: 0.01943462898 | O62: 0.03012048193 | P62: 0.0276816609 | Q62: 0.03343949045 | R62: 0.04070556309 | T62: 0.02676237488
A63: 20:00 - 20:30 | B63: 10 | C63: 8 | D63: 19 | E63: 11 | F63: 8 | G63: 11 | H63: 17 | I63: 16 | K63: 0.02012072435 | L63: 0.01590457256 | M63: 0.02959501558 | N63: 0.01943462898 | O63: 0.01204819277 | P63: 0.01903114187 | Q63: 0.02707006369 | R63: 0.02170963365 | T63: 0.02061424668
A64: 20:30 - 21:00 | B64: 4 | C64: 3 | D64: 7 | E64: 10 | F64: 10 | G64: 15 | H64: 11 | I64: 10 | K64: 0.008048289738 | L64: 0.005964214712 | M64: 0.01090342679 | N64: 0.01766784452 | O64: 0.01506024096 | P64: 0.02595155709 | Q64: 0.01751592357 | R64: 0.01356852103 | T64: 0.0143350023
A66: Total volume | B66: =SUM(B41:B64) -> 497 | C66: =SUM(C41:C64) -> 503 | D66: 642 | E66: 566 | F66: 664 | G66: 578 | H66: 628 | I66: 737

Sheet Including shifts
A1: Including shifts
A2: Example of staffing calculations for a 12-hour period using Erlang X with SL restriction
A4: Forecast of total daily call volume | B4: 3000
A5: AHT | B5: 3
A6: Patience | B6: 2
A7: AWT | B7: =20/60 -> 0.3333333333
A8: Lines | B8: 200
A9: Shrinkage | B9: 0.2
A10: SL | B10: 0.8
E11: Shifts and numbers of agents per shift
A12: Time interval | B12: Profile | C12: Forecast | E12: 11 | F12: 3 | G12: 0 | H12: 2 | I12: 1 | J12: 3 | K12: 2 | L12: 5 | N12: Staffing | O12: SL | P12: Abandonments
A13: 09:00 - 09:30 | B13: 0.03925189036 | C13: =$B$4 * B13 / 30 -> 3.925189036 | E13: 1 | N13: =SUMPRODUCT($E$12:$L$12, E13:L13) -> 11 | O13: =serviceLevelErlangX(C13,$B$5,N13*(1-$B$9),$B$7,$B$8,$B$6,0) -> 0.345696 | P13: =abandonmentsErlangX(C13,$B$5,N13 * (1 - $B$9),$B$8,$B$6,0) -> 0.289921
A14: 09:30 - 10:00 | B14: 0.04511194491 | C14: =$B$4 * B14 / 30 -> 4.511194491 | E14: 1 | F14: 1 | N14: =SUMPRODUCT($E$12:$L$12, E14:L14) -> 14 | O14: =serviceLevelErlangX(C14,$B$5,N14*(1-$B$9),$B$7,$B$8,$B$6,0) -> 0.448842 | P14: =abandonmentsErlangX(C14,$B$5,N14 * (1 - $B$9),$B$8,$B$6,0) -> 0.223493
A15: 10:00 - 10:30 | B15: 0.04757485559 | C15: 4.757485559 | E15: 1 | F15: 1 | G15: 1 | N15: =SUMPRODUCT($E$12:$L$12, E15:L15) -> 14 | O15: 0.388063 | P15: 0.252793
A16: 10:30 - 11:00 | B16: 0.04676946349 | C16: 4.676946349 | E16: 1 | F16: 1 | G16: 1 | H16: 1 | N16: 16 | O16: 0.568597 | P16: 0.165434
A17: 11:00 - 11:30 | B17: 0.05226011969 | C17: 5.226011969 | E17: 1 | F17: 1 | G17: 1 | H17: 1 | I17: 1 | N17: 17 | O17: 0.50849 | P17: 0.188842
A18: 11:30 - 12:00 | B18: 0.05175344216 | C18: 5.175344216 | E18: 1 | F18: 1 | G18: 1 | H18: 1 | I18: 1 | J18: 1 | N18: 20 | O18: 0.733039 | P18: 0.0962958
A19: 12:00 - 12:30 | B19: 0.04115684974 | C19: 4.115684974 | E19: 1 | F19: 1 | G19: 1 | H19: 1 | I19: 1 | J19: 1 | K19: 1 | N19: 22 | O19: 0.962365 | P19: 0.0137887
A20: 12:30 - 13:00 | B20: 0.03999671267 | C20: 3.999671267 | E20: 1 | F20: 1 | G20: 1 | H20: 1 | I20: 1 | J20: 1 | K20: 1 | L20: 1 | N20: 27 | O20: 0.997791 | P20: 0.00090426
A21: 13:00 - 13:30 | B21: 0.04634174647 | C21: 4.634174647 | F21: 1 | G21: 1 | H21: 1 | I21: 1 | J21: 1 | K21: 1 | L21: 1 | N21: 16 | O21: 0.579644 | P21: 0.160844
A22: 13:30 - 14:00 | B22: 0.05212215757 | C22: 5.212215757 | E22: 1 | G22: 1 | H22: 1 | I22: 1 | J22: 1 | K22: 1 | L22: 1 | N22: 24 | O22: 0.90813 | P22: 0.0329723
A23: 14:00 - 14:30 | B23: 0.05769765813 | C23: 5.769765813 | E23: 1 | F23: 1 | H23: 1 | I23: 1 | J23: 1 | K23: 1 | L23: 1 | N23: 27 | O23: 0.929737 | P23: 0.0254537
A24: 14:30 - 15:00 | B24: 0.0490766867 | C24: 4.90766867 | E24: 1 | F24: 1 | G24: 1 | I24: 1 | J24: 1 | K24: 1 | L24: 1 | N24: 25 | O24: 0.959008 | P24: 0.015075
A25: 15:00 - 15:30 | B25: 0.05274772286 | C25: 5.274772286 | E25: 1 | F25: 1 | G25: 1 | H25: 1 | J25: 1 | K25: 1 | L25: 1 | N25: 26 | O25: 0.94989 | P25: 0.0183394
A26: 15:30 - 16:00 | B26: 0.0494759599 | C26: 4.94759599 | E26: 1 | F26: 1 | G26: 1 | H26: 1 | I26: 1 | K26: 1 | L26: 1 | N26: 24 | O26: 0.935581 | P26: 0.0233332
A27: 16:00 - 16:30 | B27: 0.06331496542 | C27: 6.331496542 | E27: 1 | F27: 1 | G27: 1 | H27: 1 | I27: 1 | J27: 1 | L27: 1 | N27: 25 | O27: 0.783761 | P27: 0.0761526
A28: 16:30 - 17:00 | B28: 0.05391238151 | C28: 5.391238151 | E28: 1 | F28: 1 | G28: 1 | H28: 1 | I28: 1 | J28: 1 | K28: 1 | N28: 22 | O28: 0.800631 | P28: 0.0711034
A29: 17:00 - 17:30 | B29: 0.0393599239 | C29: 3.93599239 | E29: 1 | F29: 1 | G29: 1 | H29: 1 | I29: 1 | J29: 1 | K29: 1 | L29: 1 | N29: 27 | O29: 0.998161 | P29: 0.000757252
A30: 17:30 - 18:00 | B30: 0.03394403579 | C30: 3.394403579 | F30: 1 | G30: 1 | H30: 1 | I30: 1 | J30: 1 | K30: 1 | L30: 1 | N30: 16 | O30: 0.872073 | P30: 0.0470669
A31: 18:00 - 18:30 | B31: 0.02433676093 | C31: 2.433676093 | G31: 1 | H31: 1 | I31: 1 | J31: 1 | K31: 1 | L31: 1 | N31: 13 | O31: 0.908696 | P31: 0.0343804
A32: 18:30 - 19:00 | B32: 0.02622478447 | C32: 2.622478447 | H32: 1 | I32: 1 | J32: 1 | K32: 1 | L32: 1 | N32: 13 | O32: 0.87268 | P32: 0.048182
A33: 19:00 - 19:30 | B33: 0.02585831387 | C33: 2.585831387 | I33: 1 | J33: 1 | K33: 1 | L33: 1 | N33: 11 | O33: 0.747747 | P33: 0.100469
A34: 19:30 - 20:00 | B34: 0.02676237488 | C34: 2.676237488 | J34: 1 | K34: 1 | L34: 1 | N34: 10 | O34: 0.627234 | P34: 0.154766
A35: 20:00 - 20:30 | B35: 0.02061424668 | C35: 2.061424668 | K35: 1 | L35: 1 | N35: 7 | O35: 0.517234 | P35: 0.226102
A36: 20:30 - 21:00 | B36: 0.0143350023 | C36: 1.43350023 | L36: 1 | N36: 5 | O36: 0.519085 | P36: 0.241771
M38: Total number of agent hours | N38: =SUM(N13:N36) / 2 -> 216
M39: Overall SL | O39: =SUMPRODUCT(C13:C36,O13:O36) / SUM(C13:C36) -> 0.7550997086
M40: Overall abandonments | P40: =SUMPRODUCT(C13:C36,P13:P36) / SUM(C13:C36) -> 0.09743407971
